bitfinex/quotes_SOLUSD_20241222
["timestamp","ask_amount","ask_price","bid_price","bid_amount"]
[1734902958575,26.0360805,182.36,182.3,26.0360805]
[1734902959460,39.7458805,182.35,182.28,49.8129645]
[1734902961790,26.0360805,182.34,182.27,32.3631805]
[1734902961994,26.0360805,182.32,182.27,6.3271]
[1734902962149,26.0360805,182.32,182.26,26.0360805]
[1734902963277,39.7482805,182.32,182.26,26.0360805]
[1734902963979,13.7122,182.32,182.26,26.0360805]
[1734902965165,13.7122,182.32,182.27,26.0360805]
[1734902967891,26.0360805,182.33,182.27,26.0360805]
[1734902970493,26.0360805,182.34,182.27,26.0360805]
[1734902971899,26.0360805,182.33,182.26,49.8129645]
[1734902977077,26.0360805,182.32,182.26,49.8129645]
[1734902977278,26.0360805,182.31,182.26,23.776884]
[1734902977507,26.0360805,182.3,182.25,1.6062]
[1734902979989,26.0360805,182.32,182.25,27.6422805]
[1734902980402,26.0360805,182.32,182.26,49.8129645]
[1734902980608,26.0360805,182.33,182.27,26.0360805]
[1734902982399,26.0360805,182.33,182.26,49.8129645]
[1734902984505,26.0360805,182.32,182.26,49.8129645]
[1734902986584,39.7483805,182.32,182.26,49.8129645]
[1734902987209,26.0360805,182.31,182.26,23.776884]
[1734902988210,16.27627649,182.31,182.26,23.776884]
[1734902989812,29.98927649,182.31,182.26,23.776884]
[1734902990694,16.27627649,182.32,182.26,23.776884]
[1734902993517,16.27627649,182.31,182.26,23.776884]
[1734902995704,29.98867649,182.32,182.26,23.776884]
[1734902996016,29.98867649,182.32,182.25,17.88247649]
[1734902996206,16.27627649,182.26,182.23,6.6508]
[1734902996405,20.0,182.29,182.2,1.5938]
[1734902996406,16.27627649,182.24,182.2,1.5938]
[1734902996601,16.27627649,182.23,182.16,17.87007649]
[1734902996821,16.27627649,182.22,182.16,7.7692]
[1734902997020,16.27627649,182.21,182.16,7.7692]
[1734902997321,16.27627649,182.2,182.16,7.7692]
[1734902997905,16.27627649,182.19,182.13,16.27627649]
[1734902998404,16.27627649,182.19,182.12,17.87007649]
[1734902998609,29.99837649,182.19,182.12,17.87007649]
[1734903000223,26.07803653,182.19,182.12,27.67183653]
[1734903000597,26.07803653,182.2,182.13,26.20352653]
[1734903000803,26.07803653,182.22,182.16,26.07803653]
[1734903001118,26.07803653,182.19,182.13,49.85492053]
[1734903001313,26.07803653,182.2,182.13,49.85492053]
[1734903001620,46.07803653,182.21,182.14,26.07803653]
[1734903001810,20.0,182.21,182.15,26.07803653]
[1734903002010,46.07803653,182.21,182.15,23.776884]
[1734903003708,39.79833653,182.22,182.15,49.85492053]
[1734903003922,20.0,182.22,182.17,23.776884]
[1734903004305,26.07803653,182.23,182.17,23.776884]
[1734903004807,13.7176,182.25,182.17,23.776884]
[1734903004808,26.07803653,182.22,182.17,23.776884]
[1734903005295,26.07803653,182.23,182.17,23.776884]
[1734903005499,46.07803653,182.22,182.17,23.776884]
[1734903006326,20.0,182.22,182.17,49.85492053]
[1734903006713,20.0,182.22,182.17,23.776884]
[1734903008614,20.0,182.22,182.17,49.85492053]
[1734903008814,39.79503653,182.26,182.19,26.07803653]
[1734903009044,39.79503653,182.26,182.2,26.07803653]
[1734903011226,39.79503653,182.26,182.2,23.776884]
[1734903012034,26.07803653,182.21,182.14,26.07803653]
[1734903012332,26.07803653,182.19,182.13,32.50973653]
[1734903012510,26.07803653,182.18,182.13,6.4317]
[1734903014207,26.07803653,182.16,182.12,1.5938]
[1734903015235,26.07803653,182.17,182.12,1.5938]
[1734903015413,26.07803653,182.16,182.12,1.5938]
[1734903016124,26.07803653,182.17,182.12,1.5938]
[1734903016323,27.4393,182.22,182.13,49.85492053]
[1734903016324,26.07803653,182.19,182.13,49.85492053]
[1734903017446,26.07803653,182.2,182.14,26.07803653]
[1734903018142,26.07803653,182.2,182.13,49.85492053]
[1734903018439,39.79953653,182.2,182.13,49.85492053]
[1734903019032,39.79953653,182.2,182.14,26.07803653]
[1734903019234,39.79953653,182.2,182.13,49.85492053]
[1734903019413,26.07803653,182.19,182.13,49.85492053]
[1734903019835,26.07803653,182.17,182.12,1.5938]
[1734903020017,26.07803653,182.15,182.08,34.02093653]
[1734903020224,26.07803653,182.13,182.08,7.9429]
[1734903020429,26.07803653,182.12,182.08,7.9429]
[1734903020634,46.07803653,182.09,182.04,1.5112]
[1734903021435,20.0,182.09,182.04,1.5112]
[1734903021925,20.0,182.09,182.04,27.58923653]
[1734903023126,20.0,182.09,182.04,1.5112]
[1734903023940,20.0,182.09,182.04,27.58923653]
[1734903024640,20.0,182.09,182.04,1.5112]
[1734903024843,26.07803653,182.08,182.03,6.3616]
[1734903025033,26.07803653,182.06,181.99,27.58923653]
[1734903025630,26.07803653,182.05,181.99,1.5112]
[1734903026442,26.07803653,182.06,181.99,27.58923653]
[1734903027044,46.07803653,182.09,182.02,26.07803653]
[1734903027219,46.07803653,182.09,182.03,23.776884]
[1734903027737,46.07803653,182.09,182.03,49.85492053]
[1734903028140,26.07803653,182.09,182.03,49.85492053]
[1734903028531,39.80763653,182.09,182.03,49.85492053]
[1734903028718,39.80763653,182.09,182.03,23.776884]
[1734903028913,26.07803653,182.08,182.01,26.07803653]
[1734903029126,26.07803653,182.08,182.02,23.776884]
[1734903030055,26.07803653,182.09,182.02,49.85492053]
[1734903030514,26.07803653,182.09,182.02,49.35492053]
[1734903032144,26.07803653,182.09,182.02,39.59338781]
[1734903032145,16.31650381,182.09,182.02,39.59338781]
[1734903032440,16.31650381,182.08,182.01,16.31650381]
[1734903032829,16.31650381,182.1,182.02,16.31650381]
[1734903033419,16.31650381,182.08,182.01,16.31650381]
[1734903034254,16.31650381,182.09,182.02,16.31650381]
[1734903034435,13.7302,182.08,182.02,16.31650381]
[1734903035746,13.7302,182.08,182.01,16.31650381]
[1734903036047,30.04670381,182.08,182.01,16.31650381]
[1734903036648,16.31650381,182.09,182.01,16.31650381]
[1734903036858,16.31650381,182.09,182.02,16.31650381]
[1734903037146,20.0,182.08,182.04,16.31650381]
[1734903037351,20.0,182.08,182.03,16.31650381]
[1734903038450,13.7309,182.07,182.01,16.31650381]
[1734903039851,13.7309,182.07,182.02,16.31650381]
[1734903040944,20.0,182.08,182.03,40.09338781]
[1734903041343,20.0,182.08,182.03,23.776884]
[1734903043251,20.0,182.08,182.02,23.776884]
[1734903043458,50.04720381,182.08,182.01,16.31650381]
[1734903043871,33.7307,182.08,182.01,16.31650381]
[1734903044232,50.04720381,182.08,182.01,16.31650381]
[1734903044633,33.7307,182.08,182.01,16.31650381]
[1734903048677,33.7307,182.08,182.03,23.776884]
[1734903049558,50.04720381,182.08,182.01,16.31650381]
[1734903049785,13.7317,182.06,182.0,16.31650381]
[1734903050070,30.04820381,182.06,181.99,17.82770381]
[1734903050867,13.7317,182.06,182.0,16.31650381]
[1734903051172,13.7317,182.06,182.01,16.31650381]
[1734903051691,20.0,182.06,182.02,16.31650381]
[1734903051991,20.0,182.06,182.01,16.31650381]
[1734903053493,20.0,182.06,182.0,16.31650381]
[1734903053792,13.7324,182.05,182.0,16.31650381]
[1734903055482,13.7324,182.05,181.99,16.31650381]
[1734903055686,13.7324,182.05,181.94,8.0816]
[1734903055687,16.31650381,182.0,181.94,8.0816]
[1734903057083,30.05210381,182.01,181.94,24.39810381]
[1734903057458,30.05210381,182.01,181.95,16.31650381]
[1734903057666,20.0,182.02,181.97,16.31650381]
[1734903057868,30.05010381,182.04,181.97,16.31650381]
[1734903060082,16.31650381,182.02,181.95,16.31650381]
[1734903060494,16.31650381,182.01,181.95,16.31650381]
[1734903060791,16.31650381,181.97,181.92,0.710234]
[1734903062285,16.31650381,181.96,181.92,0.710234]
[1734903062469,16.31650381,181.95,181.92,0.710234]
[1734903062789,16.31650381,181.97,181.92,0.710234]
[1734903063592,16.31650381,181.96,181.92,0.710234]
[1734903063890,16.31650381,181.97,181.92,0.710234]
[1734903065169,30.05540381,181.97,181.92,0.710234]
[1734903066071,13.7389,181.97,181.92,0.710234]
[1734903066687,16.31650381,182.02,181.95,16.31650381]
[1734903066866,1.6428,182.05,181.98,16.31650381]
[1734903067063,16.31650381,182.05,181.99,16.31650381]
[1734903067285,16.31650381,182.04,181.97,16.31650381]
[1734903067495,13.7297,182.09,182.02,16.31650381]
[1734903067698,30.04620381,182.09,182.02,16.31650381]
[1734903068195,39.83730564,182.09,182.02,26.10760564]
[1734903068705,4.11769036,182.13,182.06,26.10760564]
[1734903068706,41.73303461,182.13,182.06,26.10760564]
[1734903068882,39.83450564,182.13,182.06,26.10760564]
[1734903069570,13.7269,182.13,182.07,26.10760564]
[1734903069971,39.83450564,182.13,182.06,26.10760564]
[1734903070600,13.7269,182.13,182.07,26.10760564]
[1734903071291,26.10760564,182.09,182.03,26.10760564]
[1734903071492,26.10760564,182.07,182.01,6.6209]
[1734903071699,26.10760564,182.05,181.99,27.66030564]
[1734903072192,26.10760564,182.06,181.99,27.66030564]
[1734903072384,26.10760564,182.05,181.99,27.66030564]
[1734903072700,26.10760564,182.06,181.99,27.66030564]
[1734903075099,26.10760564,182.06,182.0,26.10760564]
[1734903075799,26.10760564,182.09,182.03,26.10760564]
[1734903076384,26.10760564,182.07,182.0,26.10760564]
[1734903076620,26.10760564,182.08,182.01,26.10760564]
[1734903076802,26.10760564,182.09,182.02,26.10760564]
[1734903076989,13.7287,182.1,182.04,49.88448964]
[1734903076990,39.83630564,182.1,182.04,49.88448964]
[1734903077180,13.7287,182.1,182.04,49.88448964]
[1734903077580,39.83630564,182.1,182.04,49.88448964]
[1734903077881,26.10760564,182.12,182.05,26.10760564]
[1734903078077,13.7265,182.13,182.05,26.10760564]
[1734903078303,39.83410564,182.13,182.06,26.10760564]
[1734903078612,26.10760564,182.12,182.06,26.10760564]
[1734903078796,13.7265,182.13,182.07,26.10760564]
[1734903079192,39.83410564,182.13,182.07,26.10760564]
[1734903080592,39.83410564,182.13,182.06,49.88448964]
[1734903080899,26.10760564,182.12,182.06,49.88448964]
[1734903081200,13.7265,182.13,182.07,26.10760564]
[1734903081882,13.7265,182.13,182.08,26.10760564]
[1734903084155,13.7265,182.13,182.09,26.10760564]
[1734903084286,39.83130564,182.17,182.1,26.10760564]
[1734903084480,39.83130564,182.17,182.11,26.10760564]
[1734903085106,26.10760564,182.16,182.09,26.10760564]
[1734903085409,26.10760564,182.13,182.06,26.10760564]
[1734903086077,13.7272,182.12,182.06,26.10760564]
[1734903086487,13.7219,182.19,182.1,26.10760564]
[1734903086785,13.7219,182.19,182.13,26.10760564]
[1734903087082,13.7219,182.19,182.14,26.10760564]
[1734903088688,20.0,182.16,182.13,26.10760564]
[1734903089093,20.0,182.16,182.12,26.10760564]
[1734903089391,20.0,182.16,182.11,26.10760564]
[1734903089816,20.0,182.16,182.12,26.10760564]
[1734903090114,20.0,182.16,182.13,26.10760564]
[1734903091391,13.7215,182.2,182.15,26.10760564]
[1734903091598,13.7193,182.23,182.18,26.10760564]
[1734903092312,26.10760564,182.21,182.15,26.10760564]
[1734903092486,26.10760564,182.19,182.12,26.10760564]
[1734903092693,26.10760564,182.18,182.11,26.10760564]
[1734903092890,26.10760564,182.18,182.07,34.10510564]
[1734903092891,26.10760564,182.19,182.12,26.10760564]
[1734903093319,26.10760564,182.18,182.11,26.10760564]
[1734903093613,39.83100564,182.18,182.11,26.10760564]
[1734903094004,13.7234,182.18,182.12,26.10760564]
[1734903097991,39.83100564,182.18,182.11,26.10760564]
[1734903098397,20.0,182.15,182.11,26.10760564]
[1734903098597,26.10760564,182.17,182.11,26.10760564]
[1734903099217,20.0,182.13,182.09,26.10760564]
[1734903099422,20.0,182.12,182.06,26.10760564]
[1734903099620,20.0,182.08,182.04,26.10760564]
[1734903099797,20.0,182.08,182.03,26.10760564]
[1734903099995,20.0,182.08,182.04,26.10760564]
[1734903100694,20.0,182.08,182.05,26.10760564]
[1734903101000,13.7275,182.12,182.07,26.10760564]
[1734903101197,13.7275,182.12,182.08,26.10760564]
[1734903101392,13.7275,182.12,182.07,26.10760564]
[1734903101631,39.83260564,182.15,182.09,26.10760564]
[1734903101938,39.83030564,182.18,182.12,26.10760564]
[1734903102097,13.7227,182.18,182.12,26.10760564]
[1734903102603,39.83030564,182.18,182.12,26.10760564]
[1734903102925,41.49150564,182.21,182.14,26.10760564]
[1734903103132,26.10760564,182.2,182.13,26.10760564]
[1734903103732,41.49150564,182.21,182.14,26.10760564]
[1734903103910,26.10760564,182.2,182.14,26.10760564]
[1734903105740,41.49150564,182.21,182.14,26.10760564]
[1734903105939,39.82830564,182.21,182.14,26.10760564]
[1734903106678,28.34796525,182.25,182.16,26.10760564]
[1734903106679,26.10760564,182.22,182.16,26.10760564]
[1734903106933,13.7181,182.24,182.19,26.10760564]
[1734903107748,27.77080564,182.26,182.2,26.10760564]
[1734903107947,26.10760564,182.26,182.21,26.10760564]
[1734903108515,26.10760564,182.27,182.21,26.10760564]
[1734903108710,26.10760564,182.28,182.22,26.10760564]
[1734903109450,26.10760564,182.27,182.21,26.10760564]
[1734903111324,26.10760564,182.28,182.22,26.10760564]
[1734903111528,26.10760564,182.29,182.23,26.10760564]
[1734903112051,41.38300564,182.3,182.24,26.10760564]
[1734903112430,13.7138,182.3,182.26,26.10760564]
[1734903113343,26.10760564,182.32,182.26,26.10760564]
[1734903113935,39.81920564,182.33,182.27,26.10760564]
[1734903114470,26.10760564,182.32,182.26,26.10760564]
[1734903114670,26.10760564,182.3,182.24,26.10760564]
[1734903114971,26.10760564,182.29,182.23,26.10760564]
[1734903115365,26.10760564,182.28,182.22,26.10760564]
[1734903115878,26.10760564,182.29,182.23,26.10760564]
[1734903116983,26.10760564,182.3,182.24,26.10760564]
[1734903117164,20.0,182.27,182.24,26.10760564]
[1734903117369,13.7129,182.31,182.19,23.902374]
[1734903117370,39.82050564,182.31,182.25,26.10760564]
[1734903117577,39.82050564,182.31,182.26,26.10760564]
[1734903118893,39.82050564,182.31,182.25,26.10760564]
[1734903119075,26.10760564,182.3,182.25,26.10760564]
[1734903119281,26.10760564,182.28,182.22,26.10760564]
[1734903120084,26.10760564,182.26,182.21,26.10760564]
[1734903120380,20.0,182.26,182.24,26.10760564]
[1734903120704,46.10760564,182.3,182.24,26.10760564]
[1734903121001,20.0,182.3,182.26,26.10760564]
[1734903121306,13.7129,182.31,182.26,26.10760564]
[1734903121471,39.82050564,182.31,182.25,26.10760564]
[1734903121886,13.7129,182.31,182.26,26.10760564]
[1734903122181,39.82050564,182.31,182.25,26.10760564]
[1734903122399,26.10760564,182.3,182.24,26.10760564]
[1734903123296,26.10760564,182.3,182.25,26.10760564]
[1734903124113,13.7144,182.29,182.24,26.10760564]
[1734903124404,26.10760564,182.28,182.22,26.10760564]
[1734903124783,13.7144,182.29,182.2,26.10760564]
[1734903124784,26.10760564,182.26,182.2,26.10760564]
[1734903124980,26.10760564,182.22,182.16,26.10760564]
[1734903125211,26.10760564,182.21,182.15,26.10760564]
[1734903125584,26.10760564,182.21,182.14,26.10760564]
[1734903126114,39.82820564,182.21,182.15,26.10760564]
[1734903126290,39.82820564,182.21,182.14,26.10760564]
[1734903126488,20.0,182.17,182.13,26.10760564]
[1734903126698,26.10760564,182.16,182.1,26.10760564]
[1734903126898,26.10760564,182.15,182.09,26.10760564]
[1734903127102,26.10760564,182.17,182.1,26.10760564]
[1734903127597,26.10760564,182.17,182.11,26.10760564]
[1734903127934,19.0,182.15,182.12,26.10760564]
[1734903130316,19.0,182.15,182.11,26.10760564]
[1734903130518,39.82890564,182.2,182.14,26.10760564]
[1734903130696,13.7213,182.2,182.15,26.10760564]
[1734903130893,13.7213,182.2,182.09,0.12549]
[1734903131112,39.82890564,182.2,182.14,26.10760564]
[1734903131323,39.82890564,182.2,182.13,26.10760564]
[1734903131533,63.36830574,182.25,182.12,26.10760564]
[1734903131534,26.10760564,182.19,182.12,26.10760564]
[1734903131819,13.7226,182.18,182.13,26.10760564]
[1734903132011,13.7226,182.18,182.14,26.10760564]
[1734903132313,13.7226,182.18,182.13,26.10760564]
[1734903133020,39.82810564,182.21,182.15,26.10760564]
[1734903133317,13.7205,182.21,182.16,26.10760564]
[1734903135321,13.7205,182.21,182.15,26.10760564]
[1734903135528,26.10760564,182.21,182.14,26.10760564]
[1734903136422,26.10760564,182.2,182.14,26.10760564]
[1734903136605,26.10760564,182.2,182.13,26.10760564]
[1734903137116,20.0,182.17,182.11,26.10760564]
[1734903137795,18.62765549,182.17,182.12,26.10760564]
[1734903138124,18.62765549,182.17,182.13,26.10760564]
[1734903139527,18.62765549,182.17,182.12,26.10760564]
[1734903139842,18.62765549,182.17,182.11,26.10760564]
[1734903140224,13.7232,182.18,182.12,26.10760564]
[1734903140443,20.0,182.17,182.14,26.10760564]
[1734903140724,26.10760564,182.23,182.16,26.10760564]
[1734903140928,39.82570564,182.24,182.17,26.10760564]
[1734903141318,39.82570564,182.24,182.18,26.10760564]
[1734903141713,13.7181,182.24,182.2,26.10760564]
[1734903141912,39.82380564,182.27,182.21,26.10760564]
[1734903142115,26.10760564,182.28,182.21,26.10760564]
[1734903142503,26.10760564,182.27,182.21,26.10760564]
[1734903142912,26.10760564,182.28,182.21,26.10760564]
[1734903143625,26.10760564,182.3,182.23,26.10760564]
[1734903143828,26.10760564,182.3,182.24,26.10760564]
[1734903144415,26.10760564,182.3,182.23,26.10760564]
[1734903144808,26.10760564,182.31,182.25,26.10760564]
[1734903145029,26.10760564,182.3,182.24,26.10760564]
[1734903145338,13.7128,182.32,182.23,26.10760564]
[1734903145339,26.10760564,182.29,182.23,26.10760564]
[1734903147708,26.10760564,182.3,182.24,26.10760564]
[1734903147940,26.10760564,182.29,182.23,26.10760564]
[1734903148927,26.10760564,182.29,182.22,1.5371]
[1734903149132,26.10760564,182.26,182.2,26.10760564]
[1734903149320,26.10760564,182.26,182.18,23.776884]
[1734903149321,26.10760564,182.24,182.18,49.88448964]
[1734903149644,26.10760564,182.25,182.19,26.10760564]
[1734903151035,26.10760564,182.24,182.18,26.10760564]
[1734903151426,26.10760564,182.23,182.17,26.10760564]
[1734903151626,26.10760564,182.22,182.16,26.10760564]
[1734903152740,26.10760564,182.23,182.17,26.10760564]
[1734903153435,26.10760564,182.24,182.17,26.10760564]
[1734903153731,13.7189,182.23,182.17,26.10760564]
[1734903153920,39.82650564,182.23,182.17,26.10760564]
[1734903156436,13.7189,182.23,182.18,26.10760564]
[1734903158035,26.10760564,182.24,182.17,26.10760564]
[1734903158433,26.10760564,182.2,182.14,26.10760564]
[1734903158735,26.10760564,182.18,182.12,26.10760564]
[1734903159134,26.10760564,182.19,182.12,26.10760564]
[1734903159529,13.7226,182.18,182.12,26.10760564]
[1734903159927,13.7206,182.21,182.17,26.10760564]
[1734903160739,13.7206,182.21,182.16,26.10760564]
[1734903161813,13.7185,182.24,182.15,6.3235]
[1734903162015,26.10760564,182.28,182.22,26.10760564]
[1734903162735,26.10760564,182.28,182.21,26.10760564]
[1734903163114,13.714,182.3,182.22,26.10760564]
[1734903163115,26.10760564,182.29,182.22,26.10760564]
[1734903163341,26.10760564,182.29,182.23,26.10760564]
[1734903164216,26.10760564,182.28,182.22,26.10760564]
[1734903164416,20.0,182.27,182.22,26.10760564]
[1734903164644,26.10760564,182.28,182.22,26.10760564]
[1734903165647,26.10760564,182.28,182.21,26.10760564]
[1734903166138,26.10760564,182.28,182.22,23.776884]
[1734903166322,26.10760564,182.28,182.22,49.88448964]
[1734903167530,26.10760564,182.28,182.22,26.10760564]
[1734903167731,26.10760564,182.27,182.21,26.10760564]
[1734903170840,13.7155,182.28,182.22,26.10760564]
[1734903171045,39.82310564,182.28,182.22,26.10760564]
[1734903171449,13.7155,182.28,182.23,26.10760564]
[1734903175720,13.7131,182.31,182.26,26.10760564]
[1734903175925,13.7131,182.31,182.27,26.10760564]
[1734903176132,13.7131,182.31,182.27,16.27557842]
[1734903176334,13.7131,182.31,182.28,23.776884]
[1734903176629,13.7109,182.34,182.3,16.27557842]
[1734903176851,13.7109,182.34,182.28,23.776884]
[1734903176852,6.4217,182.36,182.33,16.27557842]
[1734903177150,16.27557842,182.39,182.33,16.27557842]
[1734903177746,17.82037842,182.4,182.34,16.27557842]
[1734903178155,27.56476872,182.4,182.34,26.01996872]
[1734903178643,13.7087,182.37,182.34,26.01996872]
[1734903179051,13.7087,182.37,182.33,26.01996872]
[1734903179356,13.7087,182.37,182.28,23.776884]
[1734903179357,13.7098,182.35,182.3,26.01996872]
[1734903180155,39.72976872,182.35,182.29,26.01996872]
[1734903180332,26.01996872,182.34,182.28,26.01996872]
[1734903180743,39.72976872,182.35,182.29,26.01996872]
[1734903181643,26.01996872,182.32,182.26,26.01996872]
[1734903181847,26.01996872,182.31,182.25,26.01996872]
[1734903182040,26.01996872,182.29,182.23,26.01996872]
[1734903182241,26.01996872,182.27,182.21,26.01996872]
[1734903182550,26.01996872,182.26,182.2,26.01996872]
[1734903182750,26.01996872,182.27,182.21,26.01996872]
[1734903183341,26.01996872,182.28,182.22,26.01996872]
[1734903183545,13.7151,182.28,182.23,26.01996872]
[1734903184159,39.73506872,182.28,182.22,26.01996872]
[1734903184347,13.7151,182.28,182.22,26.01996872]
[1734903184555,13.7151,182.28,182.24,26.01996872]
[1734903185447,13.7131,182.31,182.25,26.01996872]
[1734903185648,13.7131,182.31,182.26,26.01996872]
[1734903185848,13.7131,182.31,182.25,26.01996872]
[1734903186455,39.73306872,182.31,182.25,26.01996872]
[1734903186855,26.01996872,182.3,182.24,26.01996872]
[1734903188349,39.73436872,182.29,182.22,26.01996872]
[1734903188751,26.01996872,182.26,182.2,26.01996872]
[1734903190158,39.73736872,182.25,182.19,26.01996872]
[1734903190344,26.01996872,182.24,182.17,26.01996872]
[1734903191261,26.01996872,182.22,182.16,26.01996872]
[1734903191451,26.01996872,182.19,182.13,26.01996872]
[1734903193863,39.74256872,182.18,182.11,26.01996872]
[1734903194073,26.01996872,182.16,182.09,26.01996872]
[1734903194276,26.01996872,182.15,182.09,26.01996872]
[1734903194857,26.01996872,182.16,182.09,26.01996872]
[1734903195177,26.01996872,182.16,182.1,26.01996872]
[1734903195948,39.74456872,182.16,182.1,26.01996872]
[1734903196152,13.7246,182.16,182.1,26.01996872]
[1734903196892,39.74456872,182.16,182.1,26.01996872]
[1734903197285,39.74456872,182.16,182.09,26.01996872]
[1734903197597,26.01996872,182.15,182.09,26.01996872]
[1734903199061,26.01996872,182.19,182.13,26.01996872]
[1734903199259,39.73956872,182.22,182.16,26.01996872]
[1734903200388,1.5341,182.24,182.18,26.01996872]
[1734903200565,39.73736872,182.25,182.19,26.01996872]
[1734903200763,13.7174,182.25,182.19,26.01996872]
[1734903201468,39.73506872,182.29,182.22,26.01996872]
[1734903201793,39.73506872,182.29,182.23,26.01996872]
[1734903202180,13.7151,182.29,182.23,26.01996872]
[1734903203093,39.73506872,182.29,182.23,26.01996872]
[1734903203478,26.01996872,182.28,182.22,26.01996872]
[1734903203790,39.73506872,182.29,182.23,26.01996872]
[1734903204092,26.01996872,182.3,182.23,26.01996872]
[1734903207393,26.01996872,182.28,182.22,26.01996872]
[1734903207594,26.01996872,182.26,182.2,26.01996872]
[1734903207898,26.01996872,182.26,182.19,26.01996872]
[1734903208083,26.01996872,182.25,182.19,26.01996872]
[1734903208481,26.01996872,182.26,182.19,26.01996872]
[1734903208987,26.01996872,182.25,182.19,26.01996872]
[1734903209386,26.01996872,182.22,182.16,26.01996872]
[1734903209990,46.01996872,182.21,182.15,26.01996872]
[1734903210684,26.01996872,182.22,182.15,26.01996872]
[1734903210898,13.7196,182.22,182.17,26.01996872]
[1734903211099,39.73956872,182.22,182.16,26.01996872]
[1734903211276,13.7196,182.22,182.17,26.01996872]
[1734903211599,27.65366872,182.23,182.17,26.01996872]
[1734903211780,26.01996872,182.24,182.18,26.01996872]
[1734903213005,26.01996872,182.24,182.17,26.01996872]
[1734903213176,26.01996872,182.21,182.15,26.01996872]
[1734903213372,26.01996872,182.17,182.11,26.01996872]
[1734903213576,26.01996872,182.16,182.1,26.01996872]
[1734903214097,26.01996872,182.17,182.1,26.01996872]
[1734903214479,26.01996872,182.17,182.11,26.01996872]
[1734903215099,26.01996872,182.12,182.06,26.01996872]
[1734903215401,26.01996872,182.1,182.04,26.01996872]
[1734903215606,26.01996872,182.09,182.02,32.20066872]
[1734903215898,26.01996872,182.07,182.01,26.01996872]
[1734903216105,26.01996872,182.06,182.0,26.01996872]
[1734903216479,26.01996872,182.06,181.99,26.01996872]
[1734903216777,26.01996872,182.07,182.01,26.01996872]
[1734903217306,26.01996872,182.05,181.98,26.01996872]
[1734903217487,26.01996872,182.03,181.97,26.01996872]
[1734903217687,26.01996872,182.02,181.96,26.01996872]
[1734903217892,20.0,182.04,181.93,6.1753]
[1734903218487,20.0,182.05,181.93,6.1753]
[1734903218700,20.0,182.05,181.94,0.94965644]
[1734903218902,56.1891868,182.08,182.02,42.4583868]
[1734903219806,42.4583868,182.06,182.0,42.4583868]
[1734903220814,42.4583868,182.07,182.01,42.4583868]
[1734903221018,42.4583868,182.07,182.0,42.4583868]
[1734903222715,42.4583868,182.04,181.98,42.4583868]
[1734903223216,42.4583868,182.02,181.96,42.4583868]
[1734903223419,42.4583868,182.02,181.95,42.4583868]
[1734903223621,42.4583868,182.01,181.94,42.4583868]
[1734903223932,62.4583868,182.06,182.0,42.4583868]
[1734903224292,62.4583868,182.06,181.99,42.4583868]
[1734903224293,42.4583868,182.05,181.99,42.4583868]
[1734903225914,42.4583868,182.05,181.98,42.4583868]
[1734903226417,76.1903868,182.06,182.0,42.4583868]
[1734903226722,20.0,182.04,182.0,42.4583868]
[1734903227711,1.5197,182.1,182.02,42.4583868]
[1734903227712,42.4583868,182.09,182.02,42.4583868]
[1734903228210,42.4583868,182.07,182.01,42.4583868]
[1734903228524,42.4583868,182.07,182.0,42.4583868]
[1734903228718,42.4583868,182.07,182.01,42.4583868]
[1734903230496,42.4583868,182.05,181.98,42.4583868]
[1734903230700,42.4583868,182.02,181.95,42.4583868]
[1734903230918,42.4583868,182.01,181.95,42.4583868]
[1734903231700,42.4583868,182.02,181.95,42.4583868]
[1734903232422,13.7355,182.01,181.95,42.4583868]
[1734903232928,56.1938868,182.01,181.95,42.4583868]
[1734903233225,13.7355,182.01,181.95,42.4583868]
[1734903233421,13.7335,182.04,181.98,42.4583868]
[1734903233625,56.1896868,182.07,182.0,42.4583868]
[1734903233828,13.7313,182.07,182.01,42.4583868]
[1734903234001,13.7289,182.1,182.04,42.4583868]
[1734903234204,56.1872868,182.1,182.04,42.4583868]
[1734903234408,56.1872868,182.1,182.03,42.4583868]
[1734903234844,42.4583868,182.09,182.02,42.4583868]
[1734903235048,42.4583868,182.08,182.01,42.4583868]
[1734903235206,42.4583868,182.06,181.99,42.4583868]
[1734903235707,42.4583868,182.05,181.98,42.4583868]
[1734903236616,56.1901868,182.06,181.99,42.4583868]
[1734903237612,42.4583868,182.05,181.99,42.4583868]
[1734903238008,42.4583868,182.07,182.01,42.4583868]
[1734903238511,42.4583868,182.07,182.0,42.4583868]
[1734903238704,56.1894868,182.07,182.0,42.4583868]
[1734903240045,42.4583868,182.06,181.99,42.4583868]
[1734903240225,42.4583868,182.06,181.99,26.11623191]
[1734903240226,26.11623191,182.06,181.99,26.11623191]
[1734903240649,20.0,182.03,181.95,1.6635]
[1734903240943,26.11623191,182.01,181.94,26.11623191]